bitfinex/quotes_BTCUSD_20250208
["timestamp","ask_amount","ask_price","bid_price","bid_amount"]
[1739050610294,0.00022408,96555.0,96554.0,0.46747368]
[1739050610707,0.00022408,96555.0,96554.0,0.49980602]
[1739050611370,0.00022408,96555.0,96554.0,0.49680602]
[1739050611571,0.00022408,96555.0,96554.0,0.49380602]
[1739050611770,0.00222408,96555.0,96554.0,0.50780602]
[1739050612106,0.00222408,96555.0,96554.0,0.44847195]
[1739050612613,0.00222408,96555.0,96554.0,0.80077195]
[1739050613512,0.00222408,96555.0,96554.0,0.8003934]
[1739050613715,0.00122408,96555.0,96554.0,0.7923934]
[1739050613987,0.00022408,96555.0,96554.0,0.7953934]
[1739050614173,0.00022408,96555.0,96554.0,0.8245586]
[1739050614750,0.00022408,96555.0,96554.0,0.92706225]
[1739050616325,0.00022408,96555.0,96554.0,0.94751398]
[1739050620361,0.00022408,96555.0,96554.0,0.78967799]
[1739050620562,0.00022408,96555.0,96554.0,0.76945033]
[1739050620763,0.00022408,96555.0,96554.0,0.74928513]
[1739050626143,0.00022408,96555.0,96554.0,0.75420067]
[1739050633384,0.00022408,96555.0,96554.0,0.78644176]
[1739050633791,0.00022408,96555.0,96554.0,0.75420067]
[1739050634006,0.00022408,96555.0,96554.0,0.78644097]
[1739050634220,0.00022408,96555.0,96554.0,0.88894462]
[1739050634423,0.00022408,96555.0,96554.0,0.85670432]
[1739050636541,0.00022408,96555.0,96554.0,0.75420067]
[1739050637142,0.00022408,96555.0,96554.0,0.78645564]
[1739050648672,0.00022408,96555.0,96554.0,0.73965564]
[1739050650016,0.00022408,96555.0,96554.0,0.65975564]
[1739050652865,0.00022408,96555.0,96554.0,0.62750067]
[1739050663392,0.00022408,96555.0,96554.0,0.73000432]
[1739050663976,0.00022408,96555.0,96554.0,0.62750067]
[1739050666447,0.07570826,96580.0,96554.0,0.47214767]
[1739050666630,0.155313,96579.0,96564.0,0.155337]
[1739050666928,0.155313,96579.0,96565.0,0.01702303]
[1739050667231,0.155313,96579.0,96565.0,0.17235803]
[1739050667823,0.01940346,96578.0,96565.0,0.17235803]
[1739050668979,0.155313,96579.0,96565.0,0.17235803]
[1739050669395,0.155313,96579.0,96565.0,0.17335803]
[1739050669593,0.155313,96579.0,96565.0,0.17235803]
[1739050669814,0.01758701,96580.0,96565.0,0.17235803]
[1739050670017,0.155311,96580.0,96565.0,0.17335803]
[1739050670411,0.23101926,96580.0,96565.0,0.17535803]
[1739050670610,0.07570826,96580.0,96565.0,0.17535803]
[1739050670895,0.155313,96579.0,96565.0,0.01902303]
[1739050671340,0.155313,96579.0,96565.0,0.002]
[1739050671549,0.01940526,96578.0,96566.0,0.01702183]
[1739050671758,0.17472026,96578.0,96566.0,0.01702183]
[1739050672337,0.17472226,96577.0,96566.0,0.01702183]
[1739050672565,0.17472226,96577.0,96566.0,0.01802183]
[1739050673423,0.01940526,96576.0,96566.0,0.01702183]
[1739050673759,0.01940526,96576.0,96566.0,0.003]
[1739050674308,0.01940526,96576.0,96566.0,0.002]
[1739050674535,0.01940526,96576.0,96567.0,0.155332]
[1739050674666,0.01940526,96575.0,96566.0,0.004]
[1739050674867,0.01940526,96575.0,96567.0,0.01702063]
[1739050675190,0.01940526,96575.0,96567.0,0.17235163]
[1739050675658,0.01940526,96575.0,96567.0,0.01702063]
[1739050675849,0.01940526,96574.0,96567.0,0.01702063]
[1739050676769,0.01940526,96573.0,96567.0,0.01702063]
[1739050676969,0.01940526,96573.0,96567.0,0.01902063]
[1739050677278,0.01940526,96573.0,96567.0,0.002]
[1739050678145,0.01940526,96572.0,96567.0,0.002]
[1739050678334,0.01940526,96572.0,96567.0,0.005]
[1739050678511,0.01940526,96572.0,96567.0,0.008]
[1739050678710,0.01940526,96572.0,96567.0,0.006]
[1739050679117,0.01940526,96572.0,96567.0,0.009]
[1739050679403,0.01940526,96571.0,96567.0,0.006]
[1739050679983,0.01940526,96571.0,96567.0,0.009]
[1739050680355,0.01940526,96571.0,96561.0,0.155341]
[1739050680561,0.01940526,96571.0,96562.0,0.10250365]
[1739050680766,0.01940526,96570.0,96567.0,0.001]
[1739050681308,0.01940526,96570.0,96562.0,0.10250365]
[1739050681670,0.01940526,96570.0,96567.0,0.001]
[1739050682272,0.01940526,96570.0,96567.0,0.003]
[1739050682672,0.01940526,96569.0,96567.0,0.003]
[1739050683584,0.01940526,96569.0,96558.0,0.207127]
[1739050683585,0.01940526,96569.0,96560.0,0.155342]
[1739050683791,0.207093,96575.0,96567.0,0.001]
[1739050684296,0.207093,96575.0,96560.0,0.155342]
[1739050684507,0.155321,96574.0,96567.0,0.002]
[1739050684724,0.155321,96574.0,96567.0,0.004]
[1739050684967,0.155321,96574.0,96567.0,0.002]
[1739050685683,0.208093,96575.0,96560.0,0.155342]
[1739050685890,0.155321,96574.0,96560.0,0.155342]
[1739050686810,0.07581496,96580.0,96560.0,0.09792271]
[1739050686950,0.07581496,96580.0,96562.0,0.155339]
[1739050687146,0.155321,96574.0,96561.0,0.155341]
[1739050687553,0.155321,96574.0,96557.0,0.362479]
[1739050687758,0.155321,96574.0,96561.0,0.155341]
[1739050688666,0.155323,96573.0,96560.0,0.155343]
[1739050689296,0.155321,96575.0,96561.0,0.155341]
[1739050689498,0.155321,96575.0,96562.0,0.15534]
[1739050690373,0.155321,96575.0,96559.0,0.155345]
[1739050690625,0.156321,96575.0,96559.0,0.155345]
[1739050690862,0.0646308,96574.0,96559.0,0.155345]
[1739050691370,0.0646308,96574.0,96561.0,0.00022407]
[1739050692595,0.2209518,96574.0,96561.0,0.00022407]
[1739050693020,0.001,96574.0,96561.0,0.00022407]
[1739050693201,0.003,96574.0,96561.0,0.00022407]
[1739050693540,0.001,96574.0,96561.0,0.00022407]
[1739050693942,0.003,96574.0,96561.0,0.00022407]
[1739050694166,0.158321,96574.0,96561.0,0.00022407]
[1739050696579,0.20740597,96573.0,96561.0,0.00022407]
[1739050697021,0.01942838,96572.0,96561.0,0.00022407]
[1739050698558,0.01942838,96571.0,96561.0,0.00022407]
[1739050699938,0.01942838,96570.0,96561.0,0.00022407]
[1739050701892,0.01942838,96569.0,96561.0,0.00022407]
[1739050703008,0.155324,96573.0,96561.0,0.00022407]
[1739050703449,0.17352827,96573.0,96561.0,0.00022407]
[1739050703982,0.01820427,96573.0,96561.0,0.00022407]
[1739050704168,0.02020427,96573.0,96563.0,0.155338]
[1739050704399,0.002,96573.0,96564.0,0.10250365]
[1739050704627,0.002,96573.0,96565.0,0.0772]
[1739050704859,0.001,96573.0,96565.0,0.0772]
[1739050705077,0.0001067,96574.0,96565.0,0.0772]
[1739050705314,0.001,96573.0,96565.0,0.0772]
[1739050705538,0.0001067,96574.0,96565.0,0.0772]
[1739050706104,0.001,96573.0,96565.0,0.0772]
[1739050706497,0.01817709,96574.0,96565.0,0.0772]
[1739050706723,0.01817709,96574.0,96565.0,0.232534]
[1739050706919,0.01917709,96574.0,96565.0,0.232534]
[1739050707386,0.02017709,96574.0,96565.0,0.232534]
[1739050707637,0.02017709,96574.0,96566.0,0.155333]
[1739050707843,0.02017709,96574.0,96565.0,0.0772]
[1739050707992,0.02017709,96574.0,96566.0,0.07960027]
[1739050708191,0.01917709,96574.0,96566.0,0.07960027]
[1739050708761,0.01917709,96574.0,96565.0,0.0772]
[1739050709141,0.01817709,96574.0,96566.0,0.155334]
[1739050709300,0.01817709,96574.0,96565.0,0.0772]
[1739050710371,0.01917709,96574.0,96565.0,0.0772]
[1739050711078,0.01817709,96574.0,96565.0,0.0772]
[1739050712256,0.01817709,96574.0,96565.0,0.232534]
[1739050712460,0.01817709,96574.0,96565.0,0.0772]
[1739050715681,0.01817709,96574.0,96565.0,0.232535]
[1739050715904,0.01817709,96574.0,96565.0,0.07742407]
[1739050716424,0.01817709,96574.0,96565.0,0.00022407]
[1739050716626,0.0689939,96574.0,96565.0,0.00022407]
[1739050717435,0.01817709,96574.0,96565.0,0.00022407]
[1739050717611,0.01917709,96574.0,96565.0,0.00022407]
[1739050718702,0.01917709,96574.0,96565.0,0.15555807]
[1739050718703,0.02117709,96574.0,96565.0,0.15555807]
[1739050718960,0.02117709,96574.0,96565.0,0.00022407]
[1739050719525,0.01917709,96574.0,96565.0,0.00022407]
[1739050719960,0.02017709,96574.0,96565.0,0.00022407]
[1739050720155,0.02017709,96574.0,96565.0,0.00222407]
[1739050720302,0.01817709,96574.0,96565.0,0.00222407]
[1739050720730,0.01817709,96574.0,96565.0,0.00422407]
[1739050731069,0.01817709,96574.0,96566.0,0.02067825]
[1739050732405,0.01817709,96574.0,96566.0,0.02267825]
[1739050732884,0.01817709,96574.0,96566.0,0.02467825]
[1739050737207,0.155328,96570.0,96566.0,0.02467825]
[1739050737407,0.155328,96570.0,96566.0,0.004]
[1739050737858,0.2071,96572.0,96566.0,0.004]
[1739050738014,0.0774,96571.0,96566.0,0.002]
[1739050738222,0.155332,96568.0,96566.0,0.002]
[1739050738429,0.155332,96568.0,96566.0,0.006]
[1739050738653,0.207103,96570.0,96566.0,0.002]
[1739050738822,0.155332,96567.0,96566.0,0.002]
[1739050739375,0.207103,96570.0,96566.0,0.002]
[1739050739577,0.155329,96569.0,96565.0,0.00022407]
[1739050739783,0.207103,96570.0,96566.0,0.004]
[1739050740106,0.01817709,96574.0,96566.0,0.004]
[1739050740321,0.01817709,96574.0,96565.0,0.00022407]
[1739050740458,0.155324,96572.0,96566.0,0.02067825]
[1739050740654,0.155324,96572.0,96565.0,0.00022407]
[1739050741681,0.17549809,96574.0,96565.0,0.00022407]
[1739050741881,0.155325,96572.0,96565.0,0.00022407]
[1739050742092,0.02017709,96574.0,96565.0,0.00022407]
[1739050742341,0.155327,96571.0,96565.0,0.00022407]
[1739050742495,0.155328,96570.0,96565.0,0.00022407]
[1739050742691,0.15533,96569.0,96565.0,0.00022407]
[1739050743947,0.155332,96568.0,96565.0,0.00022407]
[1739050744211,0.155329,96569.0,96565.0,0.00022407]
[1739050744381,0.155329,96569.0,96565.0,0.00122407]
[1739050744599,0.155331,96568.0,96565.0,0.00122407]
[1739050745216,0.362432,96570.0,96565.0,0.00222407]
[1739050745760,0.155329,96570.0,96565.0,0.00222407]
[1739050746215,0.207099,96573.0,96565.0,0.00122407]
[1739050746417,0.155324,96572.0,96565.0,0.00022407]
[1739050746732,0.155326,96571.0,96565.0,0.00122407]
[1739050746872,0.155323,96573.0,96565.0,0.00122407]
[1739050747083,0.01817709,96574.0,96566.0,0.19528286]
[1739050747292,0.0001067,96574.0,96568.0,0.0474]
[1739050747516,0.0001067,96574.0,96573.0,0.232422]
[1739050747716,0.0001067,96574.0,96573.0,0.33492565]
[1739050747948,0.0001067,96574.0,96573.0,0.39543604]
[1739050748321,0.0001067,96574.0,96573.0,0.33492565]
[1739050749775,0.023,96623.0,96573.0,0.17960365]
[1739050749977,0.00013608,96594.0,96574.0,0.10353901]
[1739050750194,0.00013608,96594.0,96575.0,0.155318]
[1739050750403,0.00013608,96594.0,96576.0,0.10250365]
[1739050750558,0.00013608,96594.0,96577.0,0.18114619]
[1739050750756,0.00013608,96594.0,96578.0,0.10250365]
[1739050751155,0.00113608,96594.0,96578.0,0.10250365]
[1739050751399,0.00513608,96594.0,96578.0,0.10250365]
[1739050752758,0.00613608,96594.0,96578.0,0.10250365]
[1739050752960,0.00213608,96594.0,96579.0,0.05688438]
[1739050753166,0.00213608,96594.0,96580.0,0.10250365]
[1739050753167,0.00013608,96594.0,96580.0,0.10250365]
[1739050753574,0.00113608,96594.0,96580.0,0.10250365]
[1739050753767,0.00513608,96594.0,96580.0,0.10250365]
[1739050753986,0.00613608,96594.0,96580.0,0.14954487]
[1739050754185,0.00133608,96594.0,96580.0,0.14954487]
[1739050754397,0.155286,96596.0,96580.0,0.14954487]
[1739050754601,0.003,96594.0,96580.0,0.14954487]
[1739050754808,0.004,96594.0,96580.0,0.10250365]
[1739050755357,0.004,96594.0,96581.0,0.0771]
[1739050755556,0.004,96594.0,96582.0,0.10250365]
[1739050756020,0.001,96594.0,96582.0,0.10250365]
[1739050756294,0.001,96594.0,96584.0,0.0474]
[1739050756488,0.001,96594.0,96585.0,0.06411666]
[1739050756699,0.001,96594.0,96586.0,0.10250365]
[1739050757032,0.003,96594.0,96586.0,0.10250365]
[1739050757451,8.45e-05,96596.0,96586.0,0.10250365]
[1739050757876,0.003,96594.0,96586.0,0.10250365]
[1739050758021,0.003,96594.0,96587.0,0.06535083]
[1739050758685,0.003,96594.0,96586.0,0.10250365]
[1739050759646,8.45e-05,96596.0,96586.0,0.10250365]
[1739050759877,0.0040845,96596.0,96586.0,0.10250365]
[1739050760462,8.45e-05,96596.0,96586.0,0.10250365]
[1739050760676,0.003,96594.0,96586.0,0.10250365]
[1739050761428,8.45e-05,96596.0,96586.0,0.10250365]
[1739050761600,0.0040845,96596.0,96586.0,0.10250365]
[1739050762433,0.0041912,96596.0,96586.0,0.10250365]
[1739050762811,0.0001912,96596.0,96586.0,0.10250365]
[1739050762997,0.003,96594.0,96586.0,0.10250365]
[1739050763652,0.0001912,96596.0,96586.0,0.10250365]
[1739050763867,0.0041912,96596.0,96586.0,0.10250365]
[1739050764185,0.0001912,96596.0,96586.0,0.10250365]
[1739050764660,0.003,96594.0,96586.0,0.10250365]
[1739050765857,0.0001912,96596.0,96586.0,0.10250365]
[1739050766212,0.0041912,96596.0,96586.0,0.10250365]
[1739050773620,0.00022428,96600.0,96586.0,0.10250365]
[1739050773962,0.155283,96598.0,96586.0,0.10250365]
[1739050775051,0.0001067,96596.0,96586.0,0.10250365]
[1739050776398,0.0011067,96596.0,96586.0,0.10250365]
[1739050783213,0.1563927,96596.0,96586.0,0.10250365]
[1739050784063,0.02891452,96600.0,96586.0,0.10250365]
[1739050784263,0.207043,96599.0,96586.0,0.10250365]
[1739050785353,0.155285,96597.0,96586.0,0.10250365]
[1739050787199,0.155285,96597.0,96586.0,0.10272772]
[1739050787441,0.0001067,96596.0,96586.0,0.10272772]
[1739050790311,0.08328168,96596.0,96586.0,0.10272772]
[1739050792141,0.1271,96595.0,96586.0,0.00022407]
[1739050792368,0.155291,96593.0,96586.0,0.00022407]
[1739050794959,0.0001067,96596.0,96572.0,0.289899]
[1739050795211,0.155288,96595.0,96577.0,0.155315]
[1739050795411,0.155288,96595.0,96576.0,0.155316]
[1739050796596,0.155288,96595.0,96577.0,0.155315]
[1739050796769,0.155288,96595.0,96574.0,0.253194]
[1739050796770,0.155288,96595.0,96575.0,0.207091]
[1739050797073,0.155288,96595.0,96577.0,0.155316]
[1739050797273,0.1553927,96596.0,96578.0,0.155314]
[1739050797451,0.0001067,96596.0,96579.0,0.238112]
[1739050797666,0.0001067,96596.0,96580.0,0.15531]
[1739050797889,0.0001067,96596.0,96579.0,0.0828]
[1739050798068,0.1553927,96596.0,96579.0,0.0828]
[1739050798846,0.0001067,96596.0,96579.0,0.238112]
[1739050799080,0.0001067,96596.0,96579.0,0.28395796]
[1739050799963,0.0001067,96596.0,96580.0,0.0828]
[1739050800194,0.1553917,96596.0,96580.0,0.0828]
[1739050800536,0.1553917,96596.0,96581.0,0.0164082]
[1739050800745,0.0001067,96596.0,96581.0,0.0164082]
[1739050801240,0.0001067,96596.0,96582.0,0.155307]
[1739050801449,0.0001067,96596.0,96582.0,0.05643369]
[1739050804321,0.0001067,96596.0,96583.0,0.0164058]
[1739050804581,0.0001067,96596.0,96583.0,0.11890945]
[1739050804780,0.0001067,96596.0,96586.0,0.1232]
[1739050804980,0.0001067,96596.0,96587.0,0.01640099]
[1739050810050,0.0001067,96596.0,96588.0,0.10250365]
[1739050810276,0.0001067,96596.0,96591.0,0.207056]
[1739050810476,0.0001067,96596.0,96592.0,0.10250365]
[1739050811731,0.0001067,96596.0,96592.0,0.25779565]
[1739050811951,0.0001067,96596.0,96592.0,0.10650365]
[1739050812367,0.0001067,96596.0,96592.0,0.26179465]
[1739050812591,0.0001067,96596.0,96592.0,0.18805547]
[1739050812800,0.0001067,96596.0,96595.0,0.155287]
[1739050813000,0.0001067,96596.0,96595.0,0.38099065]
[1739050814177,0.0001067,96596.0,96595.0,0.39738203]
[1739050814880,0.0001067,96596.0,96595.0,0.40238203]
[1739050815015,0.0001067,96596.0,96595.0,0.48443123]
[1739050815200,0.0001067,96596.0,96595.0,0.49143123]
[1739050815651,0.0001067,96596.0,96595.0,0.52368589]
[1739050815901,0.0001067,96596.0,96595.0,0.49143123]
[1739050816066,0.0001067,96596.0,96595.0,0.52368146]
[1739050816435,0.0001067,96596.0,96595.0,0.48443123]
[1739050817092,0.0001067,96596.0,96595.0,0.51168668]
[1739050817312,0.0001067,96596.0,96595.0,0.49643123]
[1739050817695,0.0001067,96596.0,96595.0,0.82573123]
[1739050818551,0.0001067,96596.0,96595.0,0.81673123]
[1739050818781,0.0001067,96596.0,96595.0,0.80873123]
[1739050819082,0.0001067,96596.0,96595.0,0.82673123]
[1739050819270,0.0001067,96596.0,96595.0,0.74468203]
[1739050822248,0.0001067,96596.0,96595.0,0.73568203]
[1739050822450,0.0001067,96596.0,96595.0,0.74468203]
[1739050823025,0.0001067,96596.0,96595.0,0.73568203]
[1739050823148,0.0001067,96596.0,96595.0,0.72668203]
[1739050823349,0.0001067,96596.0,96595.0,0.73568203]
[1739050823568,0.0001067,96596.0,96595.0,0.74468203]
[1739050824031,0.0001067,96596.0,96595.0,0.73568203]
[1739050824238,0.0001067,96596.0,96595.0,0.74468203]
[1739050825964,0.0001067,96596.0,96595.0,0.73568203]
[1739050826094,0.0001067,96596.0,96595.0,0.74468203]
[1739050826306,0.0001067,96596.0,96595.0,0.65848203]
[1739050826867,0.0001067,96596.0,96595.0,0.66748203]
[1739050827473,0.0001067,96596.0,96595.0,0.62148203]
[1739050827888,0.0001067,96596.0,96595.0,0.36369138]
[1739050828103,0.0001067,96596.0,96595.0,0.03439138]
[1739050828501,0.0001067,96596.0,96595.0,0.018]
[1739050828657,0.1553917,96596.0,96595.0,0.009]
[1739050828861,0.22100384,96596.0,96595.0,0.009]
[1739050829065,0.22100384,96596.0,96595.0,0.018]
[1739050829242,0.22100384,96596.0,96595.0,0.009]
[1739050829460,0.22100384,96596.0,96595.0,0.004]
[1739050829461,0.0001067,96596.0,96595.0,0.004]
[1739050829666,0.53589535,96596.0,96595.0,0.004]
[1739050829867,0.15,96595.0,96579.0,0.00022407]
[1739050830074,0.15531,96581.0,96579.0,0.00022407]
[1739050830273,0.15531,96581.0,96580.0,0.01994]
[1739050830471,0.15531,96581.0,96579.0,0.00022407]
[1739050830733,0.155311,96580.0,96579.0,0.00022407]
[1739050831757,0.155311,96580.0,96579.0,0.00522407]
[1739050832306,0.155311,96580.0,96579.0,0.00022407]
[1739050832533,0.155311,96580.0,96579.0,0.00522407]
[1739050832726,0.207065,96588.0,96579.0,0.00522407]
[1739050832995,0.155308,96582.0,96580.0,0.004]
[1739050833175,0.155306,96584.0,96580.0,0.004]
[1739050833870,0.20707,96586.0,96579.0,0.00922407]
[1739050834078,0.155306,96583.0,96580.0,0.003]
[1739050834634,0.15531,96581.0,96580.0,0.003]
[1739050834831,0.15531,96581.0,96579.0,0.00122407]
[1739050835256,0.15531,96581.0,96579.0,0.00022407]
[1739050835675,0.155309,96582.0,96580.0,0.002]
[1739050836077,0.207073,96584.0,96580.0,0.002]
[1739050836280,0.155307,96583.0,96580.0,0.002]
[1739050836856,0.155307,96583.0,96580.0,0.004]
[1739050837039,0.155307,96583.0,96580.0,0.002]
[1739050837247,0.155308,96582.0,96580.0,0.002]
[1739050837510,0.1554147,96582.0,96580.0,0.004]
[1739050838047,0.1554147,96582.0,96580.0,0.002]
[1739050838247,0.1554147,96582.0,96579.0,0.00022407]
[1739050838450,0.1554147,96582.0,96580.0,0.002]
[1739050838650,0.15531,96581.0,96580.0,0.002]
[1739050839100,0.15531,96581.0,96579.0,0.00022407]
[1739050839515,0.15531,96581.0,96580.0,0.002]
[1739050839904,0.15531,96581.0,96580.0,0.004]
[1739050840310,0.15531,96581.0,96580.0,0.002]
[1739050841151,0.15531,96581.0,96579.0,0.00522407]
[1739050841304,0.15531,96581.0,96579.0,0.00322407]
[1739050841509,0.15531,96581.0,96579.0,0.00022407]
[1739050841744,0.15531,96581.0,96580.0,0.003]
[1739050842394,0.15531,96581.0,96579.0,0.00022407]
[1739050842571,0.15531,96581.0,96579.0,0.00322407]
[1739050843213,0.15531,96581.0,96580.0,0.002]
[1739050844030,0.15531,96581.0,96580.0,0.005]
[1739050844234,0.15531,96581.0,96580.0,0.003]
[1739050844636,0.15531,96581.0,96580.0,0.002]
[1739050845095,0.15531,96581.0,96580.0,0.003]
[1739050846093,0.15531,96581.0,96580.0,0.004]
[1739050850384,0.0001067,96582.0,96580.0,0.004]
[1739050850583,0.17817709,96584.0,96580.0,0.004]
[1739050851298,0.155309,96582.0,96580.0,0.003]
[1739050851696,0.0001067,96581.0,96580.0,0.003]
[1739050852862,0.0001067,96581.0,96579.0,0.00022407]
[1739050853893,0.0001067,96581.0,96580.0,0.001]
[1739050855368,0.0001067,96581.0,96580.0,0.002]
[1739050855926,0.0001067,96581.0,96580.0,0.001]
[1739050856767,0.0001067,96581.0,96580.0,0.002]
[1739050864962,0.1554167,96581.0,96580.0,0.002]
[1739050865312,0.19166547,96581.0,96580.0,0.002]
[1739050865716,0.1554167,96581.0,96580.0,0.002]
[1739050870047,0.1554167,96581.0,96570.0,0.03631711]
[1739050870248,0.1554167,96581.0,96562.0,0.14664284]
[1739050870560,0.1554167,96581.0,96563.0,0.17208272]
[1739050871333,0.1554167,96581.0,96570.0,0.001]
[1739050871774,0.1554167,96581.0,96563.0,0.17208272]
[1739050871979,0.05695607,96580.0,96563.0,0.155338]
[1739050872215,0.05695607,96580.0,96564.0,0.0167435]
[1739050873462,0.05695607,96580.0,96565.0,0.0785]
[1739050874302,0.05695607,96580.0,96566.0,0.01674106]
[1739050874493,0.05695607,96580.0,96566.0,0.01554106]
[1739050874962,0.04194498,96579.0,96566.0,0.01554106]
[1739050875367,0.04194498,96579.0,96566.0,0.01654106]
[1739050876155,0.15141652,96580.0,96566.0,0.02243694]
[1739050876435,0.155329,96569.0,96566.0,0.02243694]
[1739050876638,0.155329,96569.0,96565.0,0.00022407]
[1739050876823,0.155327,96570.0,96566.0,0.001]
[1739050876995,0.155327,96570.0,96566.0,0.002]
[1739050877623,0.1553833,96570.0,96566.0,0.007]
[1739050877839,5.63e-05,96570.0,96566.0,0.007]
[1739050878221,5.63e-05,96570.0,96566.0,0.001]
[1739050878420,5.63e-05,96570.0,96567.0,0.02144364]
[1739050878606,5.63e-05,96570.0,96566.0,0.007]
[1739050878810,0.1553843,96570.0,96566.0,0.007]
[1739050879142,0.1553843,96570.0,96566.0,0.011]
[1739050879500,5.63e-05,96570.0,96566.0,0.01]
[1739050879605,5.63e-05,96570.0,96567.0,0.004]
[1739050879813,0.03421235,96570.0,96566.0,0.006]
[1739050880016,5.63e-05,96570.0,96568.0,0.02144207]
[1739050880268,5.63e-05,96570.0,96566.0,0.004]
[1739050880437,5.63e-05,96570.0,96567.0,0.006]
[1739050880642,5.63e-05,96570.0,96567.0,0.01]
[1739050881676,5.63e-05,96570.0,96567.0,0.004]
[1739050881889,5.63e-05,96570.0,96568.0,0.006]
[1739050882403,5.63e-05,96570.0,96568.0,0.01]
[1739050882579,5.63e-05,96570.0,96568.0,0.085]
[1739050883143,5.63e-05,96570.0,96568.0,0.075]
[1739050883545,5.63e-05,96570.0,96568.0,0.079]
[1739050884246,5.63e-05,96570.0,96568.0,0.01]
[1739050888214,0.03459058,96570.0,96568.0,0.01]
[1739050888475,5.63e-05,96570.0,96568.0,0.01]
[1739050890653,0.03484848,96570.0,96568.0,0.01]
[1739050894986,0.18427627,96577.0,96568.0,0.01]
[1739050895191,0.18427627,96577.0,96568.0,0.0100845]
[1739050895350,0.155318,96576.0,96568.0,0.0100845]
[1739050896188,0.155318,96576.0,96568.0,0.0060845]
[1739050896588,0.155318,96576.0,96568.0,0.0080845]
[1739050896790,0.155318,96576.0,96568.0,0.0020845]
[1739050896984,0.155318,96576.0,96568.0,0.0040845]
[1739050897602,0.155318,96576.0,96568.0,0.0020845]
[1739050897803,0.155318,96576.0,96568.0,0.0050845]
[1739050899791,0.03015223,96577.0,96568.0,0.0050845]
[1739050899969,0.18546823,96577.0,96569.0,0.0464]
[1739050900114,0.0001067,96581.0,96569.0,0.0464]
[1739050900517,0.155311,96580.0,96569.0,0.0464]
[1739050900916,0.0001067,96581.0,96569.0,0.0464]
[1739050901146,0.155313,96579.0,96569.0,0.0464]
[1739050901629,0.03000729,96581.0,96569.0,0.0464]
[1739050901835,0.18531729,96581.0,96570.0,0.0804]
[1739050902032,0.18531829,96581.0,96570.0,0.0804]
[1739050902237,0.0001068,96576.0,96570.0,0.0804]
[1739050903361,0.0001068,96576.0,96570.0,0.0824]
[1739050903923,0.0001068,96576.0,96570.0,0.0854]
[1739050904113,0.0001068,96576.0,96571.0,0.10250365]
[1739050904327,0.0001068,96576.0,96573.0,0.155322]
[1739050905197,0.0001068,96576.0,96572.0,0.155324]
[1739050905610,0.0001068,96576.0,96573.0,0.002]
[1739050905957,0.0001068,96576.0,96573.0,0.005]
[1739050906104,0.0001068,96576.0,96573.0,0.160322]
[1739050906311,0.0001068,96576.0,96573.0,0.158322]
[1739050907049,0.0001068,96576.0,96573.0,0.003]
[1739050908152,0.0001068,96576.0,96573.0,0.005]
[1739050908751,0.0001068,96576.0,96574.0,0.155319]
[1739050908960,0.0001068,96576.0,96573.0,0.212097]
[1739050909111,0.0001068,96576.0,96573.0,0.005]
[1739050909860,0.0001068,96576.0,96573.0,0.002]
[1739050910721,0.0001068,96576.0,96574.0,0.003]
[1739050911826,0.0001068,96576.0,96573.0,0.002]
[1739050912025,0.0001068,96576.0,96573.0,0.003]
[1739050912295,0.0001068,96576.0,96574.0,0.002]
[1739050912901,0.0001068,96576.0,96574.0,0.005]
[1739050913039,0.0001068,96576.0,96574.0,0.003]
[1739050915022,0.0001068,96576.0,96574.0,0.005]
[1739050918457,0.0001068,96576.0,96575.0,0.02787927]
[1739050919644,0.0001068,96576.0,96575.0,0.005]
[1739050920196,0.0001068,96576.0,96575.0,0.03371729]
[1739050921208,0.1554248,96576.0,96575.0,0.03371729]
[1739050921407,0.0001068,96576.0,96575.0,0.03371729]
[1739050921605,0.0001068,96576.0,96575.0,0.005]
[1739050927818,0.0001068,96576.0,96478.0,0.00022407]
[1739050927932,0.0001068,96576.0,96565.0,0.155335]
[1739050928338,0.0001068,96576.0,96566.0,0.02873707]
[1739050928546,0.06007618,96576.0,96566.0,0.02873707]
[1739050928750,0.06007618,96576.0,96563.0,0.155337]
[1739050928951,0.06007618,96576.0,96567.0,0.02873487]
[1739050929177,0.06007618,96576.0,96565.0,0.002]
[1739050929504,0.06007618,96576.0,96568.0,0.02873268]
[1739050929649,0.06007618,96576.0,96566.0,0.02873707]
[1739050929846,0.06007618,96576.0,96566.0,0.03073707]
[1739050930082,0.06007618,96576.0,96566.0,0.02873707]
[1739050930279,0.04525862,96575.0,96562.0,0.00013608]
[1739050930483,0.04525862,96575.0,96565.0,0.002]
[1739050930686,0.04525862,96575.0,96566.0,0.02873707]
[1739050931894,0.04525862,96575.0,96566.0,0.03073707]
[1739050932257,0.04378814,96574.0,96566.0,0.03173707]
[1739050932616,0.04378814,96574.0,96566.0,0.03373707]
[1739050933203,0.04378814,96574.0,96566.0,0.03173707]
[1739050934110,0.04378814,96574.0,96566.0,0.03473707]
[1739050934770,0.0001068,96576.0,96566.0,0.03473707]
[1739050935635,0.0001068,96576.0,96566.0,0.03173707]
[1739050935836,0.0001068,96576.0,96566.0,0.02873707]
[1739050936262,0.0001068,96576.0,96566.0,0.03073707]
[1739050936467,0.0001068,96576.0,96566.0,0.002]
[1739050936627,0.0001068,96576.0,96567.0,0.02883387]
[1739050936833,0.155319,96575.0,96567.0,0.02883387]
[1739050937858,0.155319,96575.0,96567.0,0.03083387]
[1739050938052,0.0001068,96576.0,96567.0,0.03083387]
[1739050938605,0.1554248,96576.0,96567.0,0.03383387]
[1739050939109,0.0001068,96576.0,96567.0,0.03594057]
[1739050939307,0.155319,96575.0,96567.0,0.03394057]
[1739050939539,0.0001068,96576.0,96567.0,0.03594057]
[1739050939892,0.0001068,96576.0,96567.0,0.03294057]
[1739050940302,0.1554248,96576.0,96567.0,0.03494057]
[1739050940822,0.0001068,96576.0,96567.0,0.03494057]
[1739050941031,0.0001068,96576.0,96568.0,0.0824]
[1739050941391,0.0001068,96576.0,96570.0,0.155327]
[1739050941797,0.0001068,96576.0,96571.0,0.02882508]
[1739050942374,0.0001068,96576.0,96569.0,0.155328]
[1739050942650,0.0001068,96576.0,96570.0,0.155327]
[1739050942826,0.0001068,96576.0,96570.0,0.002]
[1739050943434,0.0001068,96576.0,96571.0,0.002]
[1739050944616,0.0001068,96576.0,96570.0,0.002]